bitfinex-derivatives/quotes_SOLF0:USTF0_20250720
["timestamp","ask_amount","ask_price","bid_price","bid_amount"]
[1753013186796,2.95,180.34,180.32,5.5432]
[1753013188099,2.95,180.34,180.31,5.5434]
[1753013188795,2.95,180.34,180.32,5.5432]
[1753013191800,2.95,180.34,180.33,5.5429]
[1753013192001,3.13,180.38,180.25,3.07]
[1753013192603,3.13,180.36,180.25,3.07]
[1753013193307,3.13,180.35,180.32,5.543]
[1753013193603,3.13,180.35,180.29,3.07]
[1753013195103,8.6724,180.35,180.32,5.5431]
[1753013195304,3.13,180.34,180.29,3.07]
[1753013195504,3.13,180.34,180.24,11.0913]
[1753013195703,8.6729,180.34,180.31,5.5434]
[1753013195899,3.13,180.33,180.31,5.5434]
[1753013196101,3.13,180.33,180.3,3.07]
[1753013196805,3.13,180.33,180.32,5.5432]
[1753013205102,3.13,180.35,180.34,8.6125]
[1753013205702,3.13,180.35,180.34,5.5425]
[1753013206104,3.13,180.35,180.33,8.6128]
[1753013206301,3.13,180.35,180.33,5.5428]
[1753013206809,3.13,180.35,180.33,8.6128]
[1753013209212,3.13,180.35,180.33,5.5428]
[1753013210114,3.13,180.35,180.34,5.5426]
[1753013210316,3.13,180.35,180.34,8.6126]
[1753013210917,3.13,180.37,180.36,8.6119]
[1753013211513,125.86091872,180.39,180.38,5.5414]
[1753013211823,125.86091872,180.39,180.38,8.6114]
[1753013212617,122.73091872,180.39,180.38,8.6114]
[1753013213008,125.86091872,180.39,180.37,5.5417]
[1753013213214,3.13,180.38,180.36,3.07]
[1753013213613,3.13,180.38,180.37,5.5417]
[1753013215124,3.13,180.38,180.37,8.6117]
[1753013215619,3.13,180.38,180.37,5.5417]
[1753013219221,3.13,180.38,180.37,8.5617]
[1753013220923,3.13,180.38,180.37,5.5417]
[1753013222322,3.13,180.38,180.36,5.5419]
[1753013222523,3.13,180.38,180.34,3.02]
[1753013222722,3.1,180.39,180.34,3.02]
[1753013223617,3.1,180.39,180.37,5.5415]
[1753013224624,3.1,180.39,180.36,8.5619]
[1753013226723,8.6411,180.39,180.36,8.5619]
[1753013226917,3.1,180.38,180.36,8.5619]
[1753013227126,3.1,180.38,180.36,3.02]
[1753013227329,114.89553825,180.42,180.36,3.02]
[1753013227525,3.1,180.37,180.36,3.02]
[1753013227926,3.1,180.37,180.36,8.562]
[1753013231426,3.1,180.37,180.35,3.02]
[1753013231934,3.1,180.36,180.28,11.0888]
[1753013232431,3.1,180.36,180.29,3.02]
[1753013233528,3.1,180.36,180.35,5.5423]
[1753013234021,3.1,180.36,180.35,8.5623]
[1753013234721,3.1,180.36,180.28,3.02]
[1753013235130,5.5429,180.34,180.31,5.5435]
[1753013235331,3.1,180.33,180.31,5.5435]
[1753013237533,3.1,180.33,180.32,5.5432]
[1753013238739,108.38,180.36,180.32,8.5632]
[1753013239041,3.1,180.35,180.34,8.5624]
[1753013241645,3.1,180.38,180.37,5.5415]
[1753013242148,3.1,180.38,180.34,3.02]
[1753013243346,3.1,180.38,180.35,3.02]
[1753013243946,3.1,180.38,180.36,5.5418]
[1753013244846,3.1,180.38,180.36,8.5618]
[1753013245048,3.1,180.38,180.37,8.5617]
[1753013245548,3.1,180.4,180.39,5.5409]
[1753013245742,3.1,180.4,180.39,8.5609]
[1753013246244,108.26,180.43,180.4,3.02]
[1753013246447,3.1,180.41,180.4,3.02]
[1753013246847,3.1,180.41,180.4,8.5606]
[1753013249344,111.53,180.43,180.42,8.5302]
[1753013249848,3.27,180.43,180.42,8.5302]
[1753013250447,3.27,180.43,180.41,5.5404]
[1753013250845,3.27,180.43,180.4,8.5305]
[1753013251345,3.27,180.43,180.4,2.99]
[1753013252553,3.27,180.43,180.4,8.5307]
[1753013252848,3.27,180.43,180.38,2.99]
[1753013253454,8.81,180.43,180.39,5.5411]
[1753013253649,3.27,180.42,180.39,5.5411]
[1753013253953,3.27,180.42,180.4,5.5408]
[1753013254156,3.27,180.42,180.4,8.5308]
[1753013254554,5.54,180.43,180.4,8.5308]
[1753013254856,3.27,180.41,180.4,8.5308]
[1753013255353,3.27,180.42,180.41,2.99]
[1753013255949,3.27,180.42,180.41,8.5305]
[1753013256251,3.27,180.42,180.41,2.99]
[1753013257653,3.27,180.42,180.4,8.5308]
[1753013258757,3.27,180.42,180.38,2.99]
[1753013258958,3.27,180.42,180.31,2.99]
[1753013259559,3.27,180.42,180.4,5.5407]
[1753013259753,3.27,180.42,180.39,2.99]
[1753013259754,8.8102,180.42,180.39,2.99]
[1753013259955,3.27,180.4,180.39,2.99]
[1753013260356,3.27,180.4,180.39,8.531]
[1753013261559,3.27,180.4,180.38,8.5313]
[1753013261758,3.27,180.4,180.38,2.99]
[1753013262563,3.27,180.39,180.38,8.5314]
[1753013263358,3.27,180.4,180.38,2.99]
[1753013263559,108.2,180.46,180.38,2.99]
[1753013263762,3.27,180.41,180.38,2.99]
[1753013264865,3.27,180.43,180.4,5.5406]
[1753013265067,3.27,180.43,180.4,8.5306]
[1753013265265,3.27,180.43,180.4,2.99]
[1753013266560,3.27,180.43,180.37,2.99]
[1753013267165,3.27,180.43,180.4,5.5406]
[1753013267366,3.27,180.43,180.32,11.0864]
[1753013267660,3.27,180.43,180.41,5.5402]
[1753013268970,3.27,180.43,180.4,8.5306]
[1753013269170,3.27,180.43,180.4,5.5406]
[1753013270364,3.27,180.42,180.39,5.541]
[1753013270765,3.27,180.42,180.4,5.5408]
[1753013272770,3.27,180.42,180.41,5.5405]
[1753013272973,3.27,180.42,180.41,8.5305]
[1753013275168,3.27,180.45,180.44,2.99]
[1753013275375,3.27,180.45,180.36,2.99]
[1753013275673,3.27,180.45,180.43,5.5398]
[1753013278872,3.27,180.45,180.43,8.6098]
[1753013281774,3.27,180.45,180.44,5.5396]
[1753013282875,3.27,180.45,180.43,8.6098]
[1753013283274,3.25,180.44,180.43,8.6098]
[1753013283973,3.25,180.46,180.45,8.6093]
[1753013284277,3.25,180.5,180.45,3.07]
[1753013284780,3.25,180.5,180.47,8.6085]
[1753013285870,3.25,180.5,180.48,3.07]
[1753013286075,107.8,180.51,180.4,3.07]
[1753013286282,3.25,180.5,180.4,3.07]
[1753013286470,3.25,180.5,180.49,5.538]
[1753013286777,3.25,180.5,180.49,8.608]
[1753013287679,3.25,180.5,180.48,5.5382]
[1753013288180,3.25,180.5,180.46,3.07]
[1753013288379,3.25,180.5,180.37,3.07]
[1753013289178,6.21553825,180.5,180.37,3.07]
[1753013289373,5.5386,180.48,180.37,3.07]
[1753013289675,3.25,180.47,180.37,3.07]
[1753013290077,5.5387,180.47,180.44,5.5394]
[1753013290278,3.25,180.46,180.44,5.5394]
[1753013292580,3.25,180.46,180.45,5.5393]
[1753013292785,3.25,180.46,180.43,3.07]
[1753013293286,3.25,180.46,180.44,5.5394]
[1753013293489,3.25,180.46,180.44,8.6094]
[1753013294785,6.21553825,180.5,180.46,5.539]
[1753013294988,6.21553825,180.51,180.38,11.0827]
[1753013295190,6.21553825,180.52,180.48,3.07]
[1753013295390,3.25,180.51,180.48,3.07]
[1753013295590,3.25,180.51,180.4,3.07]
[1753013296285,110.91,180.53,180.52,3.07]
[1753013296688,3.25,180.52,180.51,3.07]
[1753013297893,3.25,180.52,180.51,8.6074]
[1753013299596,3.25,180.52,180.51,5.5374]
[1753013300297,3.25,180.52,180.51,8.6074]
[1753013300888,3.25,180.55,180.52,3.07]
[1753013301097,3.25,180.54,180.53,3.07]
[1753013301497,3.25,180.54,180.53,8.6066]
[1753013302801,3.25,180.54,180.53,5.5366]
[1753013303100,3.25,180.54,180.53,8.6066]
[1753013303498,3.25,180.54,180.53,5.5366]
[1753013305091,3.25,180.54,180.53,8.6066]
[1753013305291,107.58,180.57,180.55,5.5359]
[1753013305495,107.58,180.57,180.53,3.07]
[1753013305496,3.25,180.56,180.53,3.07]
[1753013305997,110.83,180.57,180.56,8.6059]
[1753013306404,3.25,180.57,180.56,8.6059]
[1753013307504,3.25,180.57,180.53,3.07]
[1753013307898,3.25,180.57,180.51,3.07]
[1753013308100,2.96,180.55,180.49,3.03]
[1753013308593,2.96,180.55,180.53,5.5368]
[1753013310004,2.96,180.54,180.53,5.5368]
[1753013311403,2.96,180.54,180.52,5.537]
[1753013313300,2.96,180.54,180.53,5.5368]
[1753013314106,2.96,180.54,180.52,5.537]
[1753013315404,2.96,180.55,180.53,5.5367]
[1753013315903,107.38,180.55,180.53,5.5367]
[1753013316206,2.96,180.54,180.53,5.5367]
[1753013316602,2.96,180.54,180.53,8.5667]
[1753013316808,2.96,180.55,180.54,8.5665]
[1753013317011,191.51157843,180.6,180.54,3.03]
[1753013317306,2.96,180.57,180.54,3.03]
[1753013317706,2.96,180.59,180.54,3.03]
[1753013317903,298.85157843,180.6,180.59,5.535]
[1753013318109,107.34,180.6,180.59,5.535]
[1753013318499,110.3,180.6,180.59,5.535]
[1753013318799,2.96,180.6,180.59,8.565]
[1753013320009,110.3,180.62,180.61,5.5344]
[1753013320504,2.96,180.62,180.61,8.5644]
[1753013324504,2.96,180.65,180.62,3.03]
[1753013324809,2.96,180.65,180.54,11.0728]
[1753013325012,2.96,180.65,180.55,3.03]
[1753013325213,2.96,180.65,180.64,5.5332]
[1753013325807,2.96,180.65,180.63,5.5336]
[1753013326014,2.96,180.65,180.62,3.03]
[1753013326514,2.96,180.65,180.62,5.5339]
[1753013327710,2.96,180.65,180.62,8.5639]
[1753013328110,2.96,180.65,180.62,3.03]
[1753013328409,2.96,180.65,180.63,5.5337]
[1753013329015,2.96,180.65,180.62,8.564]
[1753013329209,2.96,180.65,180.54,11.0728]
[1753013329414,2.96,180.65,180.61,3.03]
[1753013329617,2.96,180.65,180.62,5.5339]
[1753013331216,2.96,180.65,180.55,3.03]
[1753013331810,2.96,180.64,180.55,3.03]
[1753013333319,2.96,180.64,180.62,5.534]
[1753013335523,2.96,180.64,180.6,3.03]
[1753013335719,2.96,180.64,180.61,3.03]
[1753013336226,2.96,180.64,180.63,5.5338]
[1753013338127,2.96,180.64,180.62,5.5338]
[1753013338823,2.96,180.64,180.55,3.02]
[1753013339324,5.5336,180.64,180.55,3.02]
[1753013339620,3.08,180.63,180.55,3.02]
[1753013340125,3.08,180.63,180.62,5.5341]
[1753013340621,3.08,180.63,180.62,8.5541]
[1753013342328,113.51528854,180.7,180.62,3.02]
[1753013342527,3.08,180.64,180.62,3.02]
[1753013342727,3.08,180.65,180.62,3.02]
[1753013342929,3.08,180.69,180.65,3.02]
[1753013343124,3.08,180.69,180.51,21.21835725]
[1753013343125,3.08,180.69,180.57,11.0712]
[1753013343328,3.08,180.69,180.58,3.02]
[1753013343631,3.08,180.69,180.67,5.5323]
[1753013345230,3.08,180.69,180.66,5.5328]
[1753013345430,3.08,180.69,180.63,3.02]
[1753013345830,3.08,180.69,180.64,5.5333]
[1753013346134,3.08,180.69,180.61,3.02]
[1753013347629,3.08,180.69,180.59,3.02]
[1753013347831,3.08,180.69,180.53,3.02]
[1753013348033,3.08,180.69,180.47,3.02]
[1753013348034,3.08,180.68,180.47,3.02]
[1753013348336,3.08,180.67,180.48,11.0766]
[1753013348533,5.5339,180.63,180.57,5.5356]
[1753013348735,3.08,180.62,180.57,8.5556]
[1753013349432,3.08,180.61,180.56,5.5358]
[1753013349634,3.08,180.61,180.48,11.0766]
[1753013349827,3.08,180.61,180.54,3.02]
[1753013350032,5.5347,180.6,180.54,8.5563]
[1753013350340,3.08,180.59,180.55,3.02]
[1753013350838,3.08,180.59,180.55,8.5562]
[1753013351938,3.08,180.59,180.56,3.02]
[1753013352237,3.08,180.59,180.55,8.5562]
[1753013352831,3.08,180.59,180.55,3.02]
[1753013353433,3.08,180.59,180.56,3.02]
[1753013353630,3.08,180.59,180.49,3.02]
[1753013354633,3.08,180.59,180.55,5.536]
[1753013354834,3.08,180.59,180.55,8.556]
[1753013355037,3.08,180.61,180.56,3.02]
[1753013355233,3.08,180.61,180.48,11.0766]
[1753013355234,3.08,180.61,180.49,3.02]
[1753013355538,5.5349,180.6,180.49,3.02]
[1753013355733,3.08,180.59,180.54,5.5362]
[1753013355935,3.08,180.59,180.55,3.02]
[1753013356334,3.08,180.58,180.55,3.02]
[1753013356732,5.5346,180.61,180.56,5.5357]
[1753013357042,3.08,180.57,180.56,8.5557]
[1753013360247,3.08,180.59,180.57,5.5355]
[1753013360446,3.08,180.58,180.57,8.5555]
[1753013364343,3.08,180.58,180.57,5.5355]
[1753013365350,3.08,180.58,180.56,5.5358]
[1753013365746,3.08,180.58,180.49,3.02]
[1753013367051,3.08,180.56,180.52,8.5569]
[1753013367652,3.08,180.56,180.52,5.5369]
[1753013368144,3.08,180.56,180.52,8.6069]
[1753013368352,8.616,180.56,180.52,5.5369]
[1753013368549,3.02,180.55,180.51,5.5373]
[1753013368749,3.02,180.55,180.51,8.6073]
[1753013371257,3.02,180.53,180.49,8.608]
[1753013372356,3.02,180.53,180.5,8.6077]
[1753013372654,3.02,180.53,180.47,3.07]
[1753013372861,3.02,180.53,180.45,183.15551015]
[1753013372862,3.02,180.53,180.45,8.6092]
[1753013373059,3.02,180.53,180.45,3.07]
[1753013373548,3.02,180.53,180.36,106.68]
[1753013373549,3.02,180.5,180.39,3.07]
[1753013373952,3.02,180.5,180.46,5.5387]
[1753013374150,3.02,180.49,180.46,5.5387]
[1753013374351,3.02,180.49,180.46,8.6087]
[1753013374960,3.02,180.49,180.45,5.5392]
[1753013375350,3.02,180.49,180.45,8.6092]
[1753013377261,3.02,180.49,180.46,3.07]
[1753013377756,3.02,180.49,180.46,8.6089]
[1753013378061,109.66,180.58,180.48,3.07]
[1753013378261,3.02,180.57,180.48,3.07]
[1753013378564,5.5366,180.54,180.49,3.07]
[1753013378864,3.02,180.53,180.5,3.07]
[1753013379462,3.02,180.53,180.49,3.07]
[1753013380060,3.02,180.53,180.49,8.608]
[1753013380565,3.02,180.57,180.51,3.07]
[1753013380757,3.02,180.57,180.41,106.6]
[1753013380957,3.02,180.57,180.42,3.07]
[1753013381263,3.02,180.57,180.38,197.17385605]
[1753013381264,3.02,180.52,180.45,3.07]
[1753013382164,3.02,180.5,180.45,3.07]
[1753013382661,3.02,180.5,180.45,8.609]
[1753013382861,3.02,180.5,180.45,5.539]
[1753013383062,3.02,180.5,180.46,3.07]
[1753013383966,3.02,180.5,180.46,8.609]
[1753013385261,3.02,180.5,180.47,3.07]
[1753013385665,3.02,180.5,180.47,8.6086]
[1753013385867,3.02,180.5,180.39,3.07]
[1753013386267,5.5381,180.49,180.44,5.5393]
[1753013386568,3.02,180.48,180.44,8.6093]
[1753013386769,16.61,180.58,180.39,3.07]
[1753013386770,3.02,180.47,180.39,3.07]
[1753013387367,3.02,180.45,180.41,8.6103]
[1753013387662,3.02,180.45,180.42,3.07]
[1753013387868,3.02,180.45,180.42,5.5399]
[1753013388066,3.02,180.44,180.43,3.07]
[1753013389972,3.02,180.43,180.42,3.07]
[1753013390464,3.02,180.43,180.38,197.17385605]
[1753013390665,3.02,180.42,180.41,3.07]
[1753013391770,3.02,180.42,180.4,5.5406]
[1753013391972,3.02,180.42,180.41,5.5405]
[1753013392174,3.02,180.42,180.41,8.6105]
[1753013395674,3.02,180.42,180.41,3.07]
[1753013395973,3.02,180.42,180.4,3.07]
[1753013396173,3.02,180.41,180.4,3.07]
[1753013396375,3.02,180.42,180.4,3.07]
[1753013396577,112.70020226,180.53,180.4,3.07]
[1753013396776,3.02,180.43,180.41,5.5403]
[1753013396972,3.02,180.43,180.42,3.07]
[1753013398973,3.17,180.42,180.41,8.6103]
[1753013399376,3.17,180.42,180.4,8.6107]
[1753013399872,3.17,180.41,180.4,8.6107]
[1753013401877,5.5395,180.45,180.41,5.5405]
[1753013402078,3.17,180.43,180.41,5.5405]
[1753013402277,3.17,180.44,180.41,5.5405]
[1753013402579,3.17,180.44,180.41,8.6105]
[1753013403478,3.17,180.44,180.4,5.5407]
[1753013403670,3.17,180.43,180.38,197.17385605]
[1753013403976,3.17,180.43,180.41,3.07]
[1753013404376,3.17,180.45,180.39,3.07]
[1753013404977,3.17,180.45,180.41,5.5402]
[1753013405276,3.17,180.45,180.38,197.17385605]
[1753013405478,3.17,180.45,180.41,3.07]
[1753013405976,3.17,180.45,180.41,8.6104]
[1753013406577,3.17,180.45,180.42,5.5401]
[1753013408883,3.17,180.45,180.41,8.6104]
[1753013409082,3.17,180.45,180.41,3.07]
[1753013409381,3.17,180.45,180.42,5.5402]
[1753013410184,3.17,180.45,180.41,8.6104]
[1753013410880,3.17,180.45,180.42,5.5401]
[1753013411782,3.17,180.45,180.41,3.07]
[1753013411783,3.17,180.45,180.41,8.6104]
[1753013412084,3.17,180.45,180.41,3.07]
[1753013412985,3.17,180.44,180.41,3.07]
[1753013413673,8.7096,180.44,180.41,3.07]
[1753013413981,3.17,180.43,180.41,3.07]
[1753013416185,3.17,180.43,180.41,8.6105]
[1753013416388,3.17,180.48,180.42,3.07]
[1753013417486,3.17,180.48,180.46,3.07]
[1753013418287,3.17,180.47,180.4,311.82150062]
[1753013418889,3.17,180.47,180.41,3.07]
[1753013419090,3.17,180.47,180.46,8.609]
[1753013419986,3.17,180.47,180.46,3.07]
[1753013420187,3.17,180.47,180.4,205.60150062]
[1753013420188,3.17,180.47,180.41,3.07]
[1753013420790,3.17,180.47,180.4,311.78150062]
[1753013421086,3.17,180.47,180.45,3.07]
[1753013421291,3.17,180.47,180.45,8.6092]
[1753013421696,3.17,180.46,180.45,8.6092]
[1753013422692,3.17,180.46,180.45,5.5392]
[1753013424094,3.17,180.46,180.44,5.5395]
[1753013424690,3.17,180.46,180.4,3.07]
[1753013425392,3.17,180.43,180.4,3.07]
[1753013425597,3.17,180.43,180.35,106.12]
[1753013425791,3.17,180.43,180.4,3.07]
[1753013425996,3.17,180.47,180.4,3.07]
[1753013426500,3.17,180.47,180.44,5.5394]
[1753013426704,3.17,180.47,180.44,8.6094]
[1753013426994,3.17,180.47,180.37,4.62320956]
[1753013427302,3.17,180.47,180.45,3.07]
[1753013428203,3.17,180.47,180.44,8.5994]
[1753013428599,3.17,180.47,180.44,5.5394]
[1753013428799,3.26,180.46,180.37,3.06]
[1753013429411,3.26,180.46,180.43,5.5397]
[1753013429611,3.26,180.46,180.43,3.06]
[1753013429800,8.7991,180.46,180.43,3.06]
[1753013430003,3.26,180.45,180.43,3.06]
[1753013430613,3.26,180.45,180.43,8.5998]
[1753013431512,3.26,180.45,180.43,5.5398]
[1753013432708,3.26,180.45,180.42,8.6001]
[1753013432907,3.26,180.45,180.42,5.5401]
[1753013434212,8.7993,180.45,180.42,5.5401]
[1753013434412,3.26,180.44,180.42,5.5401]
[1753013436214,3.26,180.44,180.43,5.5399]
[1753013437218,3.26,180.44,180.43,8.5999]
[1753013437609,3.26,180.44,180.42,3.06]
[1753013437813,3.26,180.44,180.41,8.6004]
[1753013438015,3.26,180.44,180.41,3.06]
[1753013438316,3.26,180.44,180.37,3.06]
[1753013438917,5.5396,180.44,180.41,5.5403]
[1753013439117,3.26,180.43,180.41,5.5403]
[1753013439915,3.26,180.43,180.4,8.6007]
[1753013441021,3.26,180.42,180.39,8.601]
[1753013441817,3.26,180.42,180.39,5.541]
[1753013442615,3.26,180.41,180.38,5.5413]
[1753013443811,3.26,180.4,180.37,5.5417]
[1753013444317,8.801,180.4,180.36,5.5419]
[1753013444516,3.26,180.39,180.36,8.6019]
[1753013444708,3.26,180.39,180.32,3.06]
[1753013444908,3.26,180.39,180.34,5.5425]
[1753013445513,3.26,180.39,180.34,8.6025]
[1753013445718,3.26,180.39,180.34,3.06]
[1753013446115,3.26,180.39,180.37,5.5417]
[1753013446321,3.26,180.39,180.37,8.6017]
[1753013446723,3.26,180.39,180.37,3.06]
[1753013446919,3.26,180.39,180.36,3.06]
[1753013447120,3.26,180.39,180.34,3.06]
[1753013447424,5.5412,180.39,180.35,8.6021]
[1753013447619,3.26,180.38,180.35,8.6021]
[1753013448824,3.26,180.38,180.35,5.5421]
[1753013449413,3.26,180.38,180.35,8.6021]
[1753013449720,3.26,180.38,180.36,8.602]
[1753013450126,3.26,180.38,180.36,3.06]
[1753013451424,3.26,180.37,180.36,3.06]
[1753013451821,3.26,180.37,180.36,8.602]
[1753013453613,3.26,180.37,180.35,8.6022]
[1753013455121,3.26,180.37,180.35,5.5422]
[1753013455319,3.26,180.36,180.32,3.06]
[1753013455521,3.26,180.36,180.34,3.06]
[1753013455922,3.26,180.36,180.34,8.6026]
[1753013456322,3.26,180.36,180.34,3.06]
[1753013456919,3.26,180.36,180.33,8.6027]
[1753013459226,8.8022,180.36,180.33,8.6027]
[1753013459520,3.14,180.35,180.33,8.6027]
[1753013459826,3.14,180.35,180.32,5.5431]
[1753013460026,3.14,180.35,180.32,8.6231]
[1753013460229,3.14,180.34,180.31,202.98459952]
[1753013460523,3.14,180.34,180.31,208.52789952]
[1753013460828,3.14,180.34,180.31,206.06459952]
[1753013461426,3.14,180.34,180.32,3.08]
[1753013462027,3.14,180.33,180.31,3.08]
[1753013463228,3.14,180.33,180.31,8.6235]
[1753013463424,3.14,180.33,180.31,3.08]
[1753013463825,3.14,180.33,180.3,5.5437]
[1753013464229,3.14,180.33,180.29,3.08]
[1753013464724,8.6831,180.33,180.29,8.624]
[1753013464924,3.14,180.32,180.29,3.08]
[1753013465130,3.14,180.32,180.3,3.08]
[1753013465528,3.14,180.31,180.3,3.08]
[1753013466032,3.14,180.31,180.22,3.08]
[1753013466424,3.14,180.29,180.22,3.08]
[1753013466828,8.6842,180.29,180.25,5.5451]
[1753013467024,3.14,180.28,180.2,105.72]
[1753013467330,3.14,180.28,180.21,3.08]
[1753013467631,3.14,180.22,180.21,3.08]
[1753013467832,0.36553532,180.22,180.21,3.08]
[1753013468824,0.36553532,180.22,180.2,3.26]
[1753013469130,5.5458,180.24,180.2,3.26]
[1753013469834,3.14,180.23,180.2,8.8068]
[1753013470235,3.14,180.23,180.2,5.5468]
[1753013470436,3.14,180.23,180.21,3.26]
[1753013470637,3.14,180.23,180.2,5.5468]
[1753013470837,3.14,180.23,180.2,8.8068]
[1753013471637,3.14,180.23,180.21,3.26]
[1753013471838,3.14,180.32,180.17,3.26]
[1753013472334,5.5456,180.25,180.21,5.5466]
[1753013472530,3.14,180.24,180.22,3.26]
[1753013474141,3.14,180.23,180.21,5.5463]
[1753013474641,3.14,180.23,180.22,3.26]
[1753013474943,3.14,180.23,180.22,8.8063]
[1753013475341,3.14,180.32,180.24,3.26]
[1753013475939,3.14,180.32,180.24,8.8057]
[1753013476138,3.14,180.32,180.25,3.26]
[1753013476339,5.5444,180.29,180.25,3.26]
[1753013476645,3.14,180.28,180.25,3.26]
[1753013477043,8.6845,180.28,180.25,3.26]
[1753013477246,3.14,180.27,180.25,3.26]
[1753013477446,8.6848,180.27,180.23,5.5459]
[1753013477645,3.14,180.26,180.24,3.26]
[1753013479246,3.14,180.25,180.23,5.5459]
[1753013479745,3.14,180.25,180.24,3.26]
[1753013481744,3.14,180.25,180.18,3.26]
[1753013482045,3.14,180.25,180.17,202.32567615]
[1753013482046,3.14,180.25,180.19,5.547]
[1753013482248,3.14,180.23,180.21,3.26]
[1753013483245,3.14,180.22,180.17,202.32567615]
[1753013483643,3.14,180.22,180.18,3.26]
[1753013483946,3.14,180.22,180.19,5.547]
[1753013484143,3.14,180.22,180.2,3.26]
[1753013484446,3.14,180.22,180.2,8.8069]
[1753013484647,3.14,180.22,180.21,3.26]
[1753013487144,3.14,180.32,180.21,3.26]
[1753013487749,3.14,180.32,180.22,3.26]
[1753013488348,3.14,180.32,180.23,3.13]
[1753013488751,3.17,180.29,180.23,5.5459]
[1753013488950,3.17,180.29,180.24,3.13]
[1753013489253,5.545,180.27,180.24,3.13]
[1753013489552,3.17,180.26,180.25,3.13]
[1753013492454,3.17,180.27,180.25,3.13]
[1753013492655,3.17,180.27,180.26,3.13]
[1753013492956,8.7148,180.27,180.26,3.13]
[1753013493157,3.17,180.27,180.26,3.13]
[1753013494456,3.17,180.27,180.17,202.32567615]
[1753013494657,3.17,180.26,180.25,3.13]
[1753013497461,3.17,180.25,180.24,3.13]
[1753013497658,3.17,180.25,180.21,3.13]
[1753013497958,3.17,180.25,180.22,3.13]
[1753013498558,5.5459,180.24,180.22,3.13]
[1753013498751,3.17,180.23,180.21,3.13]
[1753013498955,3.17,180.23,180.19,3.13]
[1753013499155,5.5463,180.22,180.19,3.13]
[1753013499357,3.17,180.21,180.2,3.13]
[1753013500861,3.17,180.21,180.19,3.13]
[1753013502863,3.17,180.21,180.2,3.13]
[1753013504361,5.5464,180.22,180.19,3.13]